[Event "Titled Tuesday Blitz July 18 Early 2023"]
[White "Kosteniuk, Alexandra"]
[Black "Florescu, Codrut-Constantin"]
[WhiteFideId "4128125"]
[BlackFideId "1202200"]
[WhiteElo "2799"]
[BlackElo "2637"]
[Result "0-1"]
[Round "10"]
[TimeControl "180+2"]
[Date "2023.07.18"]
[WhiteClock "0:00:03"]
[BlackClock "0:00:25"]
[Board "26"]

1. e4 {[%clk 0:03:00]}  c5 {[%clk 0:03:00]} 2. c3 {[%clk 0:03:00]}  Nf6 {[%clk 0:02:59]} 3. e5 {[%clk 0:03:01]}  Nd5 {[%clk 0:02:59]} 4. Nf3 {[%clk 0:03:00]}  e6 {[%clk 0:02:59]} 5. d4 {[%clk 0:02:59]}  cxd4 {[%clk 0:03:00]} 6. cxd4 {[%clk 0:03:00]}  d6 {[%clk 0:03:00]} 7. Bc4 {[%clk 0:03:00]}  Nc6 {[%clk 0:03:01]} 8. O-O {[%clk 0:03:00]}  Be7 {[%clk 0:03:01]} 9. Qe2 {[%clk 0:03:01]}  O-O {[%clk 0:03:01]} 10. Rd1 {[%clk 0:03:01]}  Qc7 {[%clk 0:03:00]} 11. Bd2 {[%clk 0:02:52]}  Bd7 {[%clk 0:02:58]} 12. Nc3 {[%clk 0:02:50]}  Nxc3 {[%clk 0:02:58]} 13. Bxc3 {[%clk 0:02:49]}  dxe5 {[%clk 0:02:51]} 14. dxe5 {[%clk 0:02:48]}  Rfd8 {[%clk 0:02:50]} 15. Bd3 {[%clk 0:02:45]}  Be8 {[%clk 0:02:50]} 16. Rac1 {[%clk 0:02:44]}  Rd5 {[%clk 0:02:45]} 17. a3 {[%clk 0:02:35]}  Rad8 {[%clk 0:02:44]} 18. Bb1 {[%clk 0:02:30]}  Rxd1+ {[%clk 0:02:43]} 19. Rxd1 {[%clk 0:02:31]}  Rxd1+ {[%clk 0:02:42]} 20. Qxd1 {[%clk 0:02:31]}  Qd8 {[%clk 0:02:29]} 21. Qc2 {[%clk 0:02:30]}  g6 {[%clk 0:02:29]} 22. Ba2 {[%clk 0:02:26]}  a6 {[%clk 0:02:22]} 23. g3 {[%clk 0:02:26]}  Na7 {[%clk 0:02:20]} 24. Qd2 {[%clk 0:01:58]}  Qxd2 {[%clk 0:02:18]} 25. Bxd2 {[%clk 0:01:56]}  Nb5 {[%clk 0:02:13]} 26. Be3 {[%clk 0:01:55]}  Bc6 {[%clk 0:02:12]} 27. Nd2 {[%clk 0:01:55]}  Nc7 {[%clk 0:01:58]} 28. f4 {[%clk 0:01:55]}  Bd5 {[%clk 0:01:53]} 29. Bb1 {[%clk 0:01:54]}  b5 {[%clk 0:01:50]} 30. Bd3 {[%clk 0:01:52]}  Kf8 {[%clk 0:01:44]} 31. Kf2 {[%clk 0:01:51]}  Ke8 {[%clk 0:01:44]} 32. h4 {[%clk 0:01:48]}  h5 {[%clk 0:01:43]} 33. b4 {[%clk 0:01:41]}  Kd7 {[%clk 0:01:41]} 34. Be4 {[%clk 0:01:32]}  Bxe4 {[%clk 0:01:38]} 35. Nxe4 {[%clk 0:01:33]}  Kc6 {[%clk 0:01:38]} 36. Ke2 {[%clk 0:01:28]}  a5 {[%clk 0:01:38]} 37. bxa5 {[%clk 0:01:21]}  Bxa3 {[%clk 0:01:36]} 38. Kd3 {[%clk 0:01:21]}  Be7 {[%clk 0:01:32]} 39. Kd4 {[%clk 0:01:09]}  Na6 {[%clk 0:01:30]} 40. Kc3 {[%clk 0:00:46]}  Kd5 {[%clk 0:01:26]} 41. Nd6 {[%clk 0:00:27]}  Bxd6 {[%clk 0:01:24]} 42. exd6 {[%clk 0:00:28]}  Kxd6 {[%clk 0:01:24]} 43. Kd4 {[%clk 0:00:28]}  f6 {[%clk 0:01:18]} 44. Bd2 {[%clk 0:00:26]}  e5+ {[%clk 0:01:15]} 45. fxe5+ {[%clk 0:00:26]}  fxe5+ {[%clk 0:01:15]} 46. Ke4 {[%clk 0:00:27]}  b4 {[%clk 0:01:14]} 47. Kd3 {[%clk 0:00:24]}  Kd5 {[%clk 0:01:13]} 48. Kc2 {[%clk 0:00:20]}  Kc4 {[%clk 0:01:13]} 49. Be3 {[%clk 0:00:20]}  b3+ {[%clk 0:01:12]} 50. Kb2 {[%clk 0:00:20]}  Nb4 {[%clk 0:01:11]} 51. Bb6 {[%clk 0:00:20]}  Nd3+ {[%clk 0:01:10]} 52. Kb1 {[%clk 0:00:19]}  Kb5 {[%clk 0:01:09]} 53. Ka1 {[%clk 0:00:13]}  e4 {[%clk 0:01:09]} 54. Kb1 {[%clk 0:00:14]}  e3 {[%clk 0:01:10]} 55. Bxe3 {[%clk 0:00:13]}  Kxa5 {[%clk 0:01:10]} 56. Bd2+ {[%clk 0:00:13]}  Kb5 {[%clk 0:01:10]} 57. Bg5 {[%clk 0:00:13]}  Kc4 {[%clk 0:01:10]} 58. Bd8 {[%clk 0:00:13]}  Kd5 {[%clk 0:01:10]} 59. Bc7 {[%clk 0:00:13]}  Ke4 {[%clk 0:01:10]} 60. Ka1 {[%clk 0:00:14]}  Ke3 {[%clk 0:01:10]} 61. Kb1 {[%clk 0:00:14]}  Kd2 {[%clk 0:01:09]} 62. Bd6 {[%clk 0:00:13]}  Kc3 {[%clk 0:01:08]} 63. Bc7 {[%clk 0:00:13]}  Kd4 {[%clk 0:01:05]} 64. Bb8 {[%clk 0:00:12]}  Ke4 {[%clk 0:01:05]} 65. Bc7 {[%clk 0:00:12]}  Kf3 {[%clk 0:01:05]} 66. Ka1 {[%clk 0:00:12]}  Nf2 {[%clk 0:01:01]} 67. Kb2 {[%clk 0:00:12]}  Ne4 {[%clk 0:01:02]} 68. Kxb3 {[%clk 0:00:13]}  Nxg3 {[%clk 0:01:02]} 69. Kc2 {[%clk 0:00:13]}  Nf5 {[%clk 0:01:03]} 70. Bd8 {[%clk 0:00:13]}  Kg4 {[%clk 0:01:02]} 71. Kd3 {[%clk 0:00:13]}  Nxh4 {[%clk 0:01:03]} 72. Ke2 {[%clk 0:00:13]}  Kg3 {[%clk 0:01:02]} 73. Kf1 {[%clk 0:00:13]}  Nf3 {[%clk 0:01:02]} 74. Bc7+ {[%clk 0:00:12]}  Kg4 {[%clk 0:01:02]} 75. Kg2 {[%clk 0:00:12]}  h4 {[%clk 0:01:02]} 76. Bb8 {[%clk 0:00:13]}  g5 {[%clk 0:01:02]} 77. Bc7 {[%clk 0:00:12]}  h3+ {[%clk 0:01:03]} 78. Kh1 {[%clk 0:00:13]}  Kf5 {[%clk 0:00:59]} 79. Bb8 {[%clk 0:00:12]}  g4 {[%clk 0:01:00]} 80. Bc7 {[%clk 0:00:12]}  Ke4 {[%clk 0:01:00]} 81. Bb8 {[%clk 0:00:12]}  Ne5 {[%clk 0:00:59]} 82. Kh2 {[%clk 0:00:12]}  Kf4 {[%clk 0:00:59]} 83. Bc7 {[%clk 0:00:10]}  Kf5 {[%clk 0:00:59]} 84. Bb8 {[%clk 0:00:07]}  Nd3 {[%clk 0:00:58]} 85. Bc7 {[%clk 0:00:06]}  Nf4 {[%clk 0:00:52]} 86. Bb8 {[%clk 0:00:06]}  Ke4 {[%clk 0:00:51]} 87. Kg3 {[%clk 0:00:05]}  Kf5 {[%clk 0:00:31]} 88. Kh2 {[%clk 0:00:05]}  Ne2 {[%clk 0:00:30]} 89. Bc7 {[%clk 0:00:05]}  Ke4 {[%clk 0:00:30]} 90. Bb8 {[%clk 0:00:05]}  Kf3 {[%clk 0:00:30]} 91. Bc7 {[%clk 0:00:05]}  Nf4 {[%clk 0:00:29]} 92. Bb8 {[%clk 0:00:04]}  g3+ {[%clk 0:00:30]} 93. Kh1 {[%clk 0:00:04]}  Ne2 {[%clk 0:00:25]} 94. Bxg3 {[%clk 0:00:03]}  Nxg3+ {[%clk 0:00:25]} 95. Kh2 {[%clk 0:00:03]}  Kg4 {[%clk 0:00:25]} 96. Kg1 {[%clk 0:00:04]}  Ne4 {[%clk 0:00:25]} 97. Kh2 {[%clk 0:00:04]}  Kh4 {[%clk 0:00:24]} 98. Kh1 {[%clk 0:00:05]}  Kg3 {[%clk 0:00:25]} 99. Kg1 {[%clk 0:00:03]}  Nf2 {[%clk 0:00:25]} 0-1


[Site "https://www.chess.com"]

[Event "Titled Tuesday Blitz July 18 Early 2023"]
[White "Garcia Blanco, Omar"]
[Black "Oro, Faustino"]
[WhiteFideId "2287153"]
[BlackFideId "20000197"]
[WhiteElo "2635"]
[BlackElo "2781"]
[Result "0-1"]
[Round "10"]
[TimeControl "180+2"]
[Date "2023.07.18"]
[WhiteClock "0:00:17"]
[BlackClock "0:00:04"]
[Board "27"]

1. Nf3 {[%clk 0:03:00]}  Nf6 {[%clk 0:02:59]} 2. g3 {[%clk 0:03:01]}  d5 {[%clk 0:02:59]} 3. Bg2 {[%clk 0:03:01]}  Bf5 {[%clk 0:02:59]} 4. O-O {[%clk 0:03:01]}  e6 {[%clk 0:02:59]} 5. b3 {[%clk 0:03:02]}  h6 {[%clk 0:02:59]} 6. Bb2 {[%clk 0:03:02]}  Be7 {[%clk 0:02:59]} 7. c4 {[%clk 0:03:03]}  O-O {[%clk 0:03:00]} 8. d3 {[%clk 0:03:03]}  Nbd7 {[%clk 0:02:59]} 9. a3 {[%clk 0:03:01]}  c6 {[%clk 0:02:57]} 10. Nbd2 {[%clk 0:03:00]}  Bh7 {[%clk 0:02:56]} 11. Qc2 {[%clk 0:02:58]}  a5 {[%clk 0:02:53]} 12. Bc3 {[%clk 0:02:58]}  Bd6 {[%clk 0:02:38]} 13. Qb2 {[%clk 0:02:57]}  Qc7 {[%clk 0:02:17]} 14. Rfc1 {[%clk 0:02:55]}  e5 {[%clk 0:02:02]} 15. cxd5 {[%clk 0:02:54]}  Nxd5 {[%clk 0:02:02]} 16. Nc4 {[%clk 0:02:44]}  Nxc3 {[%clk 0:02:01]} 17. Qxc3 {[%clk 0:02:45]}  Rfe8 {[%clk 0:01:46]} 18. Nxd6 {[%clk 0:02:40]}  Qxd6 {[%clk 0:01:46]} 19. Nd2 {[%clk 0:02:40]}  Nf6 {[%clk 0:01:41]} 20. Nc4 {[%clk 0:02:30]}  Qc7 {[%clk 0:01:40]} 21. b4 {[%clk 0:02:28]}  axb4 {[%clk 0:01:39]} 22. axb4 {[%clk 0:02:27]}  Rxa1 {[%clk 0:01:33]} 23. Qxa1 {[%clk 0:02:28]}  e4 {[%clk 0:01:32]} 24. d4 {[%clk 0:02:17]}  Nd5 {[%clk 0:01:31]} 25. Qa5 {[%clk 0:02:06]}  b6 {[%clk 0:01:31]} 26. Qa3 {[%clk 0:02:06]}  Qe7 {[%clk 0:01:20]} 27. e3 {[%clk 0:01:58]}  b5 {[%clk 0:01:05]} 28. Ne5 {[%clk 0:01:42]}  Nxb4 {[%clk 0:01:01]} 29. Rb1 {[%clk 0:01:38]}  Nd5 {[%clk 0:00:42]} 30. Qa6 {[%clk 0:01:32]}  c5 {[%clk 0:00:38]} 31. Rxb5 {[%clk 0:01:10]}  Nc7 {[%clk 0:00:37]} 32. Qb7 {[%clk 0:01:02]}  Nxb5 {[%clk 0:00:37]} 33. Qxb5 {[%clk 0:01:03]}  cxd4 {[%clk 0:00:36]} 34. exd4 {[%clk 0:01:04]}  Bf5 {[%clk 0:00:33]} 35. Nc4 {[%clk 0:00:57]}  Be6 {[%clk 0:00:27]} 36. Ne3 {[%clk 0:00:56]}  Bd7 {[%clk 0:00:22]} 37. Qb7 {[%clk 0:00:55]}  f5 {[%clk 0:00:17]} 38. Nd5 {[%clk 0:00:50]}  Qd6 {[%clk 0:00:17]} 39. Nf4 {[%clk 0:00:43]}  Qxd4 {[%clk 0:00:15]} 40. Bf1 {[%clk 0:00:43]}  e3 {[%clk 0:00:14]} 41. Qb3+ {[%clk 0:00:43]}  Kh7 {[%clk 0:00:14]} 42. Qf7 {[%clk 0:00:40]}  exf2+ {[%clk 0:00:13]} 43. Kg2 {[%clk 0:00:40]}  Bc6+ {[%clk 0:00:07]} 44. Kh3 {[%clk 0:00:41]}  Qf6 {[%clk 0:00:07]} 45. Qa2 {[%clk 0:00:36]}  Re1 {[%clk 0:00:07]} 46. Qxf2 {[%clk 0:00:35]}  Rc1 {[%clk 0:00:05]} 47. Bd3 {[%clk 0:00:33]}  Be4 {[%clk 0:00:05]} 48. Be2 {[%clk 0:00:23]}  Qg5 {[%clk 0:00:05]} 49. Bh5 {[%clk 0:00:22]}  Rc2 {[%clk 0:00:04]} 50. Bg6+ {[%clk 0:00:20]}  Qxg6 {[%clk 0:00:03]} 51. Nxg6 {[%clk 0:00:18]}  Rxf2 {[%clk 0:00:03]} 52. Nf8+ {[%clk 0:00:19]}  Kg8 {[%clk 0:00:03]} 53. g4 {[%clk 0:00:19]}  fxg4+ {[%clk 0:00:03]} 54. Kh4 {[%clk 0:00:20]}  Kxf8 {[%clk 0:00:04]} 55. Kh5 {[%clk 0:00:20]}  Bf5 {[%clk 0:00:03]} 56. h4 {[%clk 0:00:20]}  gxh3 {[%clk 0:00:02]} 57. Kh4 {[%clk 0:00:21]}  h2 {[%clk 0:00:03]} 58. Kg3 {[%clk 0:00:22]}  h1=Q {[%clk 0:00:03]} 59. Kxf2 {[%clk 0:00:17]}  Qe4 {[%clk 0:00:04]} 0-1


[Site "https://www.chess.com"]

[Event "Titled Tuesday Blitz July 18 Early 2023"]
[White "Mohamed Anees M"]
[Black "Krzyzanowski, Marcin"]
[WhiteFideId "35065815"]
[BlackFideId "1132199"]
[WhiteElo "2627"]
[BlackElo "2763"]
[Result "0-1"]
[Round "10"]
[TimeControl "180+2"]
[Date "2023.07.18"]
[WhiteClock "0:00:05"]
[BlackClock "0:00:09"]
[Board "29"]

1. e4 {[%clk 0:03:00]}  c5 {[%clk 0:02:57]} 2. Nf3 {[%clk 0:03:00]}  d6 {[%clk 0:02:55]} 3. d4 {[%clk 0:03:00]}  cxd4 {[%clk 0:02:55]} 4. Nxd4 {[%clk 0:03:01]}  Nf6 {[%clk 0:02:54]} 5. Nc3 {[%clk 0:03:02]}  a6 {[%clk 0:02:54]} 6. Bg5 {[%clk 0:02:59]}  e6 {[%clk 0:02:48]} 7. f4 {[%clk 0:02:59]}  h6 {[%clk 0:02:47]} 8. Bh4 {[%clk 0:02:56]}  Nbd7 {[%clk 0:02:46]} 9. Qe2 {[%clk 0:02:49]}  Qc7 {[%clk 0:02:38]} 10. O-O-O {[%clk 0:02:49]}  b5 {[%clk 0:02:09]} 11. Bg3 {[%clk 0:02:46]}  Bb7 {[%clk 0:02:04]} 12. e5 {[%clk 0:02:44]}  dxe5 {[%clk 0:01:59]} 13. fxe5 {[%clk 0:02:45]}  Nd5 {[%clk 0:01:49]} 14. Nxd5 {[%clk 0:02:44]}  Bxd5 {[%clk 0:01:49]} 15. Kb1 {[%clk 0:02:41]}  Nb6 {[%clk 0:01:41]} 16. Qg4 {[%clk 0:02:21]}  Rc8 {[%clk 0:01:35]} 17. Bd3 {[%clk 0:02:13]}  Nc4 {[%clk 0:01:33]} 18. Bxc4 {[%clk 0:02:04]}  Qxc4 {[%clk 0:01:30]} 19. b3 {[%clk 0:01:59]}  Qc7 {[%clk 0:01:23]} 20. Rhf1 {[%clk 0:01:53]}  h5 {[%clk 0:01:07]} 21. Qe2 {[%clk 0:01:46]}  Ba3 {[%clk 0:00:56]} 22. Rd3 {[%clk 0:01:20]}  h4 {[%clk 0:00:50]} 23. Be1 {[%clk 0:01:18]}  g6 {[%clk 0:00:41]} 24. Rc3 {[%clk 0:01:05]}  Qb8 {[%clk 0:00:38]} 25. Rxc8+ {[%clk 0:01:04]}  Qxc8 {[%clk 0:00:38]} 26. Qf2 {[%clk 0:01:00]}  Qc7 {[%clk 0:00:25]} 27. Qf6 {[%clk 0:00:59]}  Rh5 {[%clk 0:00:18]} 28. Bxh4 {[%clk 0:00:35]}  Qe7 {[%clk 0:00:18]} 29. g3 {[%clk 0:00:26]}  Qxf6 {[%clk 0:00:17]} 30. exf6 {[%clk 0:00:27]}  Re5 {[%clk 0:00:16]} 31. c3 {[%clk 0:00:24]}  g5 {[%clk 0:00:14]} 32. Nc2 {[%clk 0:00:20]}  Bf8 {[%clk 0:00:11]} 33. Bxg5 {[%clk 0:00:19]}  Rxg5 {[%clk 0:00:12]} 34. Ne3 {[%clk 0:00:19]}  Be4+ {[%clk 0:00:12]} 35. Kb2 {[%clk 0:00:19]}  Bh6 {[%clk 0:00:11]} 36. Nd1 {[%clk 0:00:18]}  Rf5 {[%clk 0:00:10]} 37. Re1 {[%clk 0:00:18]}  Bd5 {[%clk 0:00:08]} 38. h4 {[%clk 0:00:17]}  Rxf6 {[%clk 0:00:08]} 39. g4 {[%clk 0:00:18]}  Bd2 {[%clk 0:00:07]} 40. Re2 {[%clk 0:00:18]}  Bf4 {[%clk 0:00:07]} 41. g5 {[%clk 0:00:18]}  Rf5 {[%clk 0:00:06]} 42. Nf2 {[%clk 0:00:16]}  Bg3 {[%clk 0:00:06]} 43. Nd3 {[%clk 0:00:14]}  Bxh4 {[%clk 0:00:06]} 44. Rh2 {[%clk 0:00:12]}  Bxg5 {[%clk 0:00:06]} 45. Rh8+ {[%clk 0:00:13]}  Ke7 {[%clk 0:00:06]} 46. Nb4 {[%clk 0:00:14]}  Rf2+ {[%clk 0:00:05]} 47. Ka1 {[%clk 0:00:11]}  Rf1+ {[%clk 0:00:04]} 48. Kb2 {[%clk 0:00:11]}  Bc1+ {[%clk 0:00:05]} 49. Kc2 {[%clk 0:00:10]}  Be4+ {[%clk 0:00:05]} 50. Nd3 {[%clk 0:00:11]}  Bg5 {[%clk 0:00:03]} 51. Rh3 {[%clk 0:00:09]}  Rc1+ {[%clk 0:00:03]} 52. Kb2 {[%clk 0:00:10]}  Bxd3 {[%clk 0:00:04]} 53. Rxd3 {[%clk 0:00:09]}  Re1 {[%clk 0:00:04]} 54. a4 {[%clk 0:00:10]}  bxa4 {[%clk 0:00:04]} 55. bxa4 {[%clk 0:00:11]}  Re5 {[%clk 0:00:05]} 56. c4 {[%clk 0:00:10]}  a5 {[%clk 0:00:05]} 57. Kc3 {[%clk 0:00:11]}  Be3 {[%clk 0:00:06]} 58. Rd1 {[%clk 0:00:10]}  Bc5 {[%clk 0:00:07]} 59. Rh1 {[%clk 0:00:09]}  f5 {[%clk 0:00:06]} 60. Rh7+ {[%clk 0:00:09]}  Kd6 {[%clk 0:00:07]} 61. Rh6 {[%clk 0:00:10]}  Re3+ {[%clk 0:00:07]} 62. Kb2 {[%clk 0:00:10]}  f4 {[%clk 0:00:08]} 63. Rh8 {[%clk 0:00:10]}  f3 {[%clk 0:00:08]} 64. Kc2 {[%clk 0:00:10]}  f2 {[%clk 0:00:08]} 65. Rf8 {[%clk 0:00:11]}  Re1 {[%clk 0:00:08]} 66. Rd8+ {[%clk 0:00:11]}  Ke5 {[%clk 0:00:08]} 67. Kd2 {[%clk 0:00:11]}  Bb4+ {[%clk 0:00:08]} 68. Kc2 {[%clk 0:00:09]}  f1=Q {[%clk 0:00:09]} 69. Rd1 {[%clk 0:00:05]}  Qxc4+ {[%clk 0:00:08]} 70. Kb2 {[%clk 0:00:05]}  Re2+ {[%clk 0:00:08]} 71. Kb1 {[%clk 0:00:05]}  Qa2+ {[%clk 0:00:08]} 72. Kc1 {[%clk 0:00:05]}  Ba3# {[%clk 0:00:09]} 0-1


[Site "https://www.chess.com"]

[Event "Titled Tuesday Blitz July 18 Early 2023"]
[White "Rychagov, Andrey"]
[Black "Gavrilov, Maxim"]
[WhiteFideId "4119932"]
[BlackFideId "24271454"]
[WhiteElo "2706"]
[BlackElo "2574"]
[Result "1-0"]
[Round "10"]
[TimeControl "180+2"]
[Date "2023.07.18"]
[WhiteClock "0:00:51"]
[BlackClock "0:00:00"]
[Board "35"]

1. d4 {[%clk 0:03:00]}  Nf6 {[%clk 0:02:59]} 2. c4 {[%clk 0:03:00]}  e6 {[%clk 0:02:58]} 3. Nf3 {[%clk 0:03:01]}  c5 {[%clk 0:02:57]} 4. d5 {[%clk 0:03:00]}  exd5 {[%clk 0:02:53]} 5. cxd5 {[%clk 0:03:00]}  d6 {[%clk 0:02:46]} 6. Nc3 {[%clk 0:03:00]}  g6 {[%clk 0:02:46]} 7. Bf4 {[%clk 0:03:00]}  Bg7 {[%clk 0:02:45]} 8. e3 {[%clk 0:03:00]}  O-O {[%clk 0:02:45]} 9. h3 {[%clk 0:02:59]}  Re8 {[%clk 0:02:45]} 10. Nd2 {[%clk 0:02:59]}  a6 {[%clk 0:02:43]} 11. a4 {[%clk 0:02:58]}  Qa5 {[%clk 0:02:27]} 12. Bxd6 {[%clk 0:02:48]}  Rd8 {[%clk 0:02:08]} 13. Nc4 {[%clk 0:02:42]}  Qb4 {[%clk 0:02:08]} 14. Qd2 {[%clk 0:02:35]}  Bf5 {[%clk 0:01:22]} 15. f3 {[%clk 0:02:26]}  Bh6 {[%clk 0:00:48]} 16. Be7 {[%clk 0:02:19]}  Nbd7 {[%clk 0:00:40]} 17. Bxd8 {[%clk 0:02:18]}  Rxd8 {[%clk 0:00:41]} 18. g4 {[%clk 0:02:17]}  b5 {[%clk 0:00:29]} 19. axb5 {[%clk 0:02:14]}  axb5 {[%clk 0:00:29]} 20. gxf5 {[%clk 0:01:53]}  bxc4 {[%clk 0:00:27]} 21. fxg6 {[%clk 0:01:54]}  Ne5 {[%clk 0:00:23]} 22. gxf7+ {[%clk 0:01:52]}  Kxf7 {[%clk 0:00:20]} 23. Be2 {[%clk 0:01:52]}  Re8 {[%clk 0:00:17]} 24. f4 {[%clk 0:01:51]}  Nd3+ {[%clk 0:00:15]} 25. Bxd3 {[%clk 0:01:49]}  Bxf4 {[%clk 0:00:14]} 26. Nd1 {[%clk 0:01:29]}  Qb3 {[%clk 0:00:10]} 27. O-O {[%clk 0:01:21]}  Rg8+ {[%clk 0:00:08]} 28. Kh1 {[%clk 0:01:20]}  Qb7 {[%clk 0:00:07]} 29. Bxc4 {[%clk 0:01:18]}  Bd6 {[%clk 0:00:06]} 30. Qf2 {[%clk 0:01:08]}  Rg6 {[%clk 0:00:06]} 31. Qh4 {[%clk 0:01:00]}  Kg7 {[%clk 0:00:04]} 32. Rg1 {[%clk 0:00:53]}  Nxd5 {[%clk 0:00:03]} 33. Rxg6+ {[%clk 0:00:51]}  hxg6 {[%clk 0:00:00]} 34. Qe4 {[%clk 0:00:51]} 1-0


[Site "https://www.chess.com"]

[Event "Titled Tuesday Blitz July 18 Early 2023"]
[White "Moskvin, Anatoly"]
[Black "Aldokhin, Ivan"]
[WhiteFideId "24199990"]
[BlackFideId "24115720"]
[WhiteElo "2574"]
[BlackElo "2672"]
[Result "1-0"]
[Round "10"]
[TimeControl "180+2"]
[Date "2023.07.18"]
[WhiteClock "0:00:08"]
[BlackClock "0:00:01"]
[Board "43"]

1. e4 {[%clk 0:03:00]}  c5 {[%clk 0:03:00]} 2. Nf3 {[%clk 0:03:01]}  e6 {[%clk 0:03:00]} 3. b4 {[%clk 0:02:59]}  b6 {[%clk 0:02:56]} 4. bxc5 {[%clk 0:02:42]}  bxc5 {[%clk 0:02:52]} 5. Nc3 {[%clk 0:02:42]}  Nc6 {[%clk 0:02:47]} 6. Bb5 {[%clk 0:02:40]}  Nge7 {[%clk 0:02:47]} 7. O-O {[%clk 0:02:40]}  Nd4 {[%clk 0:02:46]} 8. Nxd4 {[%clk 0:02:35]}  cxd4 {[%clk 0:02:46]} 9. Ne2 {[%clk 0:02:36]}  Nc6 {[%clk 0:02:37]} 10. c3 {[%clk 0:02:05]}  dxc3 {[%clk 0:02:29]} 11. d4 {[%clk 0:02:04]}  Qa5 {[%clk 0:02:13]} 12. a4 {[%clk 0:01:59]}  a6 {[%clk 0:01:58]} 13. Bxc6 {[%clk 0:01:53]}  dxc6 {[%clk 0:01:58]} 14. Qb3 {[%clk 0:01:54]}  Bb4 {[%clk 0:01:38]} 15. Ba3 {[%clk 0:01:52]}  c5 {[%clk 0:00:57]} 16. dxc5 {[%clk 0:01:51]}  Bxa3 {[%clk 0:00:54]} 17. Qxa3 {[%clk 0:01:50]}  Bd7 {[%clk 0:00:47]} 18. c6 {[%clk 0:01:31]}  Bxc6 {[%clk 0:00:45]} 19. Nxc3 {[%clk 0:01:30]}  f6 {[%clk 0:00:28]} 20. Rfc1 {[%clk 0:01:12]}  Kf7 {[%clk 0:00:25]} 21. f3 {[%clk 0:00:40]}  Rac8 {[%clk 0:00:24]} 22. Rab1 {[%clk 0:00:32]}  Rhd8 {[%clk 0:00:24]} 23. Qa2 {[%clk 0:00:19]}  Bd7 {[%clk 0:00:10]} 24. Qb3 {[%clk 0:00:15]}  Rb8 {[%clk 0:00:04]} 25. Qa3 {[%clk 0:00:13]}  Rdc8 {[%clk 0:00:03]} 26. Rxb8 {[%clk 0:00:10]}  Rxb8 {[%clk 0:00:04]} 27. Qd6 {[%clk 0:00:09]}  Rb7 {[%clk 0:00:03]} 28. h4 {[%clk 0:00:08]}  Qc7 {[%clk 0:00:03]} 29. Qd2 {[%clk 0:00:05]}  Qc5+ {[%clk 0:00:02]} 30. Kh2 {[%clk 0:00:05]}  Qe5+ {[%clk 0:00:02]} 31. g3 {[%clk 0:00:05]}  Be8 {[%clk 0:00:01]} 32. Ne2 {[%clk 0:00:05]}  Rc7 {[%clk 0:00:01]} 33. f4 {[%clk 0:00:04]}  Rxc1 {[%clk 0:00:01]} 34. fxe5 {[%clk 0:00:04]}  Rc7 {[%clk 0:00:02]} 35. exf6 {[%clk 0:00:05]}  gxf6 {[%clk 0:00:02]} 36. h5 {[%clk 0:00:05]}  Rd7 {[%clk 0:00:03]} 37. Qh6 {[%clk 0:00:05]}  Ke7 {[%clk 0:00:04]} 38. Nf4 {[%clk 0:00:06]}  Kd6 {[%clk 0:00:03]} 39. Qf8+ {[%clk 0:00:05]}  Kc6 {[%clk 0:00:04]} 40. Qxf6 {[%clk 0:00:06]}  Kc7 {[%clk 0:00:04]} 41. Qe5+ {[%clk 0:00:06]}  Kd8 {[%clk 0:00:04]} 42. Nxe6+ {[%clk 0:00:06]}  Kc8 {[%clk 0:00:04]} 43. Nc5 {[%clk 0:00:06]}  Rd8 {[%clk 0:00:03]} 44. Qe7 {[%clk 0:00:06]}  Bd7 {[%clk 0:00:02]} 45. Qd6 {[%clk 0:00:05]}  Bg4 {[%clk 0:00:02]} 46. Qxa6+ {[%clk 0:00:05]}  Kc7 {[%clk 0:00:03]} 47. Qa5+ {[%clk 0:00:03]}  Kc8 {[%clk 0:00:03]} 48. Qa8+ {[%clk 0:00:02]}  Kc7 {[%clk 0:00:03]} 49. Qa7+ {[%clk 0:00:03]}  Kc6 {[%clk 0:00:03]} 50. Na6 {[%clk 0:00:02]}  Rd2+ {[%clk 0:00:03]} 51. Kg1 {[%clk 0:00:03]}  Rd1+ {[%clk 0:00:03]} 52. Kf2 {[%clk 0:00:04]}  Rd2+ {[%clk 0:00:04]} 53. Ke1 {[%clk 0:00:05]}  Rd1+ {[%clk 0:00:04]} 54. Kf2 {[%clk 0:00:05]}  Rd2+ {[%clk 0:00:04]} 55. Ke3 {[%clk 0:00:05]}  Re2+ {[%clk 0:00:04]} 56. Kf4 {[%clk 0:00:06]}  Bh3 {[%clk 0:00:04]} 57. Qc5+ {[%clk 0:00:06]}  Kd7 {[%clk 0:00:04]} 58. Qb5+ {[%clk 0:00:07]}  Kd6 {[%clk 0:00:01]} 59. Qxe2 {[%clk 0:00:08]} 1-0


[Site "https://www.chess.com"]

[Event "Titled Tuesday Blitz July 18 Early 2023"]
[White "Schwabeneder, Florian"]
[Black "Postlmayer, Jakob"]
[WhiteFideId "1626191"]
[BlackFideId "1643622"]
[WhiteElo "2640"]
[BlackElo "2538"]
[Result "0-1"]
[Round "10"]
[TimeControl "180+2"]
[Date "2023.07.18"]
[WhiteClock "0:00:00"]
[BlackClock "0:00:07"]
[Board "46"]

1. Nf3 {[%clk 0:03:00]}  Nf6 {[%clk 0:02:58]} 2. d4 {[%clk 0:03:00]}  d5 {[%clk 0:02:57]} 3. Bf4 {[%clk 0:02:59]}  c5 {[%clk 0:02:57]} 4. e3 {[%clk 0:02:59]}  Nc6 {[%clk 0:02:57]} 5. c3 {[%clk 0:02:59]}  Qb6 {[%clk 0:02:55]} 6. Qc2 {[%clk 0:02:59]}  Bg4 {[%clk 0:02:47]} 7. Nbd2 {[%clk 0:02:52]}  e6 {[%clk 0:02:46]} 8. Be2 {[%clk 0:02:47]}  Be7 {[%clk 0:02:39]} 9. O-O {[%clk 0:02:46]}  O-O {[%clk 0:02:40]} 10. h3 {[%clk 0:02:31]}  Bf5 {[%clk 0:02:39]} 11. Qb3 {[%clk 0:02:24]}  Rfc8 {[%clk 0:02:32]} 12. dxc5 {[%clk 0:02:17]}  Bxc5 {[%clk 0:02:29]} 13. Nd4 {[%clk 0:02:12]}  Bg6 {[%clk 0:02:19]} 14. N2f3 {[%clk 0:02:07]}  Be7 {[%clk 0:02:11]} 15. Rfd1 {[%clk 0:02:02]}  h6 {[%clk 0:01:50]} 16. Rac1 {[%clk 0:01:49]}  Qxb3 {[%clk 0:01:40]} 17. axb3 {[%clk 0:01:48]}  a6 {[%clk 0:01:40]} 18. b4 {[%clk 0:01:47]}  Kf8 {[%clk 0:01:35]} 19. Nxc6 {[%clk 0:01:44]}  Rxc6 {[%clk 0:01:08]} 20. Ne5 {[%clk 0:01:43]}  Rcc8 {[%clk 0:01:05]} 21. Nxg6+ {[%clk 0:01:43]}  fxg6 {[%clk 0:01:05]} 22. Ra1 {[%clk 0:01:39]}  Kf7 {[%clk 0:00:55]} 23. Ra4 {[%clk 0:01:27]}  g5 {[%clk 0:00:48]} 24. Bh2 {[%clk 0:01:21]}  Rd8 {[%clk 0:00:29]} 25. Rda1 {[%clk 0:01:17]}  Rac8 {[%clk 0:00:29]} 26. b5 {[%clk 0:01:09]}  axb5 {[%clk 0:00:30]} 27. Bxb5 {[%clk 0:01:08]}  Rc5 {[%clk 0:00:28]} 28. Bd3 {[%clk 0:01:03]}  Bd6 {[%clk 0:00:27]} 29. Rb4 {[%clk 0:00:57]}  Bxh2+ {[%clk 0:00:21]} 30. Kxh2 {[%clk 0:00:57]}  Rd7 {[%clk 0:00:20]} 31. Ra7 {[%clk 0:00:47]}  Rcc7 {[%clk 0:00:19]} 32. f3 {[%clk 0:00:41]}  Re7 {[%clk 0:00:19]} 33. Kg1 {[%clk 0:00:33]}  Ne8 {[%clk 0:00:18]} 34. Rb6 {[%clk 0:00:32]}  Nf6 {[%clk 0:00:14]} 35. Kf2 {[%clk 0:00:30]}  e5 {[%clk 0:00:14]} 36. Ke2 {[%clk 0:00:19]}  h5 {[%clk 0:00:12]} 37. Kd2 {[%clk 0:00:15]}  h4 {[%clk 0:00:12]} 38. Bc2 {[%clk 0:00:14]}  Red7 {[%clk 0:00:11]} 39. Ba4 {[%clk 0:00:14]}  Re7 {[%clk 0:00:11]} 40. Bb3 {[%clk 0:00:13]}  Ke8 {[%clk 0:00:10]} 41. Ra5 {[%clk 0:00:12]}  Red7 {[%clk 0:00:09]} 42. Rbb5 {[%clk 0:00:12]}  Ke7 {[%clk 0:00:09]} 43. Bxd5 {[%clk 0:00:10]}  b6 {[%clk 0:00:09]} 44. Ra8 {[%clk 0:00:04]}  Nxd5 {[%clk 0:00:08]} 45. Ke2 {[%clk 0:00:03]}  Rc5 {[%clk 0:00:08]} 46. Rb3 {[%clk 0:00:02]}  Rc6 {[%clk 0:00:07]} 47. Rb8 {[%clk 0:00:00]}  Rcd6 {[%clk 0:00:07]} 0-1


[Site "https://www.chess.com"]